[Event "CZE-tht Extraliga 2018-19"]
[Site "Czech Republic"]
[Date "2019.02.10"]
[Round "8.1"]
[White "Kociscak, Jiri"]
[Black "Ftacnik, Lubomir"]
[Result "1/2-1/2"]
[ECO "D70"]
[WhiteElo "2501"]
[BlackElo "2500"]
[Annotator "ChessBase"]
[PlyCount "291"]
[EventDate "2018.11.03"]
[EventType "team-tourn"]
[EventCountry "CZE"]
[SourceTitle "playchess.com"]
[Source "ChessBase"]
[SourceQuality "1"]
[WhiteTeam "Ostrava"]
[BlackTeam "Turnov"]
[TimeControl "40/5400+30:1800+30"]

1. d4 {[%emt 0:01:48]} Nf6 {[%emt 0:00:00]} 2. c4 {[%emt 0:00:06]} g6 {[%emt 0:00:00]} 3. Nf3 {[%emt 0:00:06]} Bg7 {[%emt 0:00:00]} 4. g3 {[%emt 0:00:08]} c6 {[%emt 0:01:16]} 5. Bg2 {[%emt 0:00:52]} d5 {[%emt 0:01:00]} 6. Nbd2 {[%emt 0:02:48]} O-O {[%emt 0:00:17]} 7. O-O {[%emt 0:00:09]} Bf5 {[%emt 0:00:27]} 8. b3 {[%emt 0:02:30]} Nbd7 {[%emt 0:00:54]} 9. Bb2 {[%emt 0:00:07]} b5 {[%emt 0:01:25]} 10. h3 {[%emt 0:25:44]} bxc4 {[%emt 0:19:24]} 11. g4 {[%emt 0:00:25]} Be4 {[%emt 0:03:15]} 12. bxc4 {[%emt 0:01:49]} Rb8 {[%emt 0:00:49]} 13. Qc1 {[%emt 0:00:27]} Re8 {[%emt 0:05:24]} 14. Rd1 {[%emt 0:07:36]} Qb6 {[%emt 0:02:32]} 15. Bc3 {[%emt 0:00:43]} Qa6 {[%emt 0:05:07]} 16. g5 {[%emt 0:22:11]} Nh5 {[%emt 0:15:19]} 17. Nxe4 {[%emt 0:04:18]} dxe4 {[%emt 0:00:08]} 18. Nd2 {[%emt 0:05:00]} Nf4 {[%emt 0:12:17]} 19. Bf1 {[%emt 0:00:08]} Ne6 {[%emt 0:00:29]} 20. Nxe4 {[%emt 0:02:49]} Qxc4 {[%emt 0:00:56]} 21. e3 {[%emt 0:00:49]} Qa4 {[%emt 0:02:55]} 22. Bg2 {[%emt 0:01:14]} Nb6 {[%emt 0:04:49]} 23. Nc5 {[%emt 0:04:04]} Qc4 {[%emt 0:06:00]} 24. Ba5 {[%emt 0:01:09]} Nxc5 {[%emt 0:02:22]} 25. Bxb6 {[%emt 0:00:10]} Qxc1 {[%emt 0:02:09]} 26. Raxc1 {[%emt 0:00:05]} axb6 {[%emt 0:00:52]} 27. dxc5 {[%emt 0:00:17]} Rec8 {[%emt 0:01:00]} 28. cxb6 {[%emt 0:05:49]} Rxb6 {[%emt 0:00:02]} 29. Rc5 {[%emt 0:00:13]} Ra6 {[%emt 0:04:29]} 30. Rd2 {[%emt 0:00:58]} Rca8 {[%emt 0:01:12]} 31. Rcc2 {[%emt 0:00:23]} Rc8 {[%emt 0:00:07]} 32. Rc4 {[%emt 0:04:43]} Rca8 {[%emt 0:00:28]} 33. Bxc6 {[%emt 0:00:11]} Rxa2 {[%emt 0:00:15]} 34. Rd7 {[%emt 0:00:10]} R2a7 {[%emt 0:01:59]} 35. Rxe7 {[%emt 0:00:53]} Rxe7 {[%emt 0:00:17]} 36. Bxa8 {[%emt 0:00:05]} h6 {[%emt 0:00:03]} 37. gxh6 {[%emt 0:02:07]} Bxh6 {[%emt 0:00:03]} 38. Kg2 {[%emt 0:00:48]} Kh7 {[%emt 0:02:43]} 39. Ra4 {[%emt 0:00:35]} Kg7 {[%emt 0:00:46]} 40. Bd5 {[%emt 0:00:09]} Kh7 {[%emt 0:03:01]} 41. Kg3 {[%emt 0:31:22]} Bg7 {[%emt 0:32:16]} 42. Ra6 {[%emt 0:00:00]} Bc3 {[%emt 0:00:00]} 43. Rc6 {[%emt 0:00:00]} Be1 {[%emt 0:00:00]} 44. Kf3 {[%emt 0:00:00]} Kg7 {[%emt 0:00:00]} 45. Ke2 {[%emt 0:00:00]} Bb4 {[%emt 0:00:00]} 46. f4 {[%emt 0:00:00]} Ba3 {[%emt 0:00:00]} 47. Kf3 {[%emt 0:00:00]} Bb2 {[%emt 0:00:00]} 48. e4 {[%emt 0:00:00]} Bd4 {[%emt 0:00:00]} 49. Kg4 {[%emt 0:00:00]} Be3 {[%emt 0:00:00]} 50. h4 {[%emt 0:00:00]} Bd2 {[%emt 0:00:00]} 51. e5 {[%emt 0:00:00]} Be3 {[%emt 0:00:00]} 52. Rf6 {[%emt 0:00:00]} Bd2 {[%emt 0:00:00]} 53. Rd6 {[%emt 0:02:37]} Bc3 {[%emt 0:00:00]} 54. h5 {[%emt 0:00:29]} Bxe5 {[%emt 0:00:00]} 55. fxe5 {[%emt 0:00:10]} Rxe5 {[%emt 0:00:00]} 56. Rd7 {[%emt 0:01:41]} Rxh5 {[%emt 0:00:03]} 57. Bxf7 {[%emt 0:00:12]} Kf6 {[%emt 0:00:50]} 58. Bc4 {[%emt 0:01:38]} Rg5+ {[%emt 0:00:27]} 59. Kf4 {[%emt 0:00:06]} Rf5+ {[%emt 0:02:30]} 60. Ke4 {[%emt 0:00:07]} Re5+ {[%emt 0:00:12]} 61. Kd4 {[%emt 0:00:07]} Re7 {[%emt 0:01:25]} 62. Rd6+ {[%emt 0:00:09]} Kg5 {[%emt 0:00:08]} 63. Bd3 {[%emt 0:00:08]} Rg7 {[%emt 0:00:19]} 64. Ke3 {[%emt 0:02:11]} Rg8 {[%emt 0:00:48]} 65. Be4 {[%emt 0:00:32]} Rg7 {[%emt 0:00:25]} 66. Rd1 {[%emt 0:00:39]} Rg8 {[%emt 0:00:35]} 67. Rg1+ {[%emt 0:00:26]} Kf6 {[%emt 0:02:02]} 68. Kf4 {[%emt 0:00:05]} Rg7 {[%emt 0:01:10]} 69. Rg5 {[%emt 0:00:41]} Rg8 {[%emt 0:00:44]} 70. Ra5 {[%emt 0:00:35]} Re8 {[%emt 0:00:30]} 71. Ra7 {[%emt 0:02:05]} Re7 {[%emt 0:00:48]} 72. Ra8 {[%emt 0:00:04]} Re6 {[%emt 0:00:24]} 73. Bd5 {[%emt 0:00:26]} Rd6 {[%emt 0:00:53]} 74. Ke4 {[%emt 0:00:28]} Rb6 {[%emt 0:00:25]} 75. Ra7 {[%emt 0:00:36]} Rb4+ {[%emt 0:00:29]} 76. Kf3 {[%emt 0:00:06]} Rb6 {[%emt 0:00:08]} 77. Kf4 {[%emt 0:00:26]} Rb4+ {[%emt 0:00:43]} 78. Be4 {[%emt 0:00:09]} g5+ {[%emt 0:01:04]} 79. Ke3 {[%emt 0:00:08]} Rb3+ {[%emt 0:00:17]} 80. Bd3 {[%emt 0:00:09]} Rb6 {[%emt 0:00:12]} 81. Ra5 {[%emt 0:00:20]} Re6+ {[%emt 0:00:52]} 82. Kd4 {[%emt 0:00:05]} Rd6+ {[%emt 0:00:31]} 83. Kc3 {[%emt 0:00:20]} Rc6+ {[%emt 0:00:40]} 84. Kd2 {[%emt 0:00:13]} g4 {[%emt 0:00:49]} 85. Rf5+ {[%emt 0:00:08]} Ke7 {[%emt 0:00:16]} 86. Rg5 {[%emt 0:00:07]} Kd8 {[%emt 0:00:54]} 87. Ke3 {[%emt 0:00:11]} Rd6 {[%emt 0:00:25]} 88. Be4 {[%emt 0:00:11]} Kc7 {[%emt 0:00:07]} 89. Bd5 {[%emt 0:00:24]} Rf6 {[%emt 0:00:50]} 90. Kd4 {[%emt 0:00:41]} Rd6 {[%emt 0:00:37]} 91. Kc5 {[%emt 0:00:38]} Rd7 {[%emt 0:00:08]} 92. Rg6 {[%emt 0:00:23]} g3 {[%emt 0:00:19]} 93. Rxg3 {[%emt 0:00:08]} Re7 {[%emt 0:00:23]} 94. Ra3 {[%emt 0:00:37]} Kd7 {[%emt 0:01:18]} 95. Ra6 {[%emt 0:01:07]} Kc7 {[%emt 0:00:41]} 96. Rc6+ {[%emt 0:02:58]} Kd8 {[%emt 0:00:21]} 97. Rb6 {[%emt 0:00:35]} Kc7 {[%emt 0:00:15]} 98. Be6 {[%emt 0:00:31]} Re8 {[%emt 0:01:52]} 99. Rc6+ {[%emt 0:03:15]} Kb7 {[%emt 0:00:01]} 100. Kb5 {[%emt 0:00:15]} Re7 {[%emt 0:00:17]} 101. Bd5 {[%emt 0:00:24]} Kb8 {[%emt 0:00:19]} 102. Rc1 {[%emt 0:00:51]} Rd7 {[%emt 0:01:04]} 103. Kc5 {[%emt 0:01:54]} Kc7 {[%emt 0:00:35]} 104. Kd4+ {[%emt 0:00:43]} Kd8 {[%emt 0:00:48]} 105. Ke5 {[%emt 0:00:04]} Rc7 {[%emt 0:00:09]} 106. Bc6 {[%emt 0:00:26]} Ke7 {[%emt 0:00:05]} 107. Rc2 {[%emt 0:00:23]} Ra7 {[%emt 0:00:51]} 108. Rh2 {[%emt 0:00:13]} Rc7 {[%emt 0:00:11]} 109. Rh6 {[%emt 0:00:04]} Kd8 {[%emt 0:00:26]} 110. Kd5 {[%emt 0:00:36]} Ke7 {[%emt 0:00:06]} 111. Rh8 {[%emt 0:00:45]} Kf6 {[%emt 0:00:20]} 112. Kd6 {[%emt 0:00:05]} Rg7 {[%emt 0:00:09]} 113. Be4 {[%emt 0:00:23]} Kg5 {[%emt 0:00:52]} 114. Rh1 {[%emt 0:00:07]} Kf4 {[%emt 0:00:16]} 115. Bd5 {[%emt 0:00:04]} Rg6+ {[%emt 0:00:46]} 116. Kc5 {[%emt 0:00:06]} Rg3 {[%emt 0:00:12]} 117. Kd4 {[%emt 0:00:06]} Kg5 {[%emt 0:00:37]} 118. Ke5 {[%emt 0:00:07]} Re3+ {[%emt 0:00:34]} 119. Be4 {[%emt 0:00:05]} Rg3 {[%emt 0:00:04]} 120. Rh8 {[%emt 0:00:18]} Kg4 {[%emt 0:00:45]} 121. Bf5+ {[%emt 0:01:46]} Kg5 {[%emt 0:00:19]} 122. Rf8 {[%emt 0:00:55]} Re3+ {[%emt 0:00:41]} 123. Be4 {[%emt 0:00:06]} Rg3 {[%emt 0:00:13]} 124. Bf3 {[%emt 0:00:05]} Kh4 {[%emt 0:00:14]} 125. Kf4 {[%emt 0:00:17]} Rg4+ {[%emt 0:00:20]} 126. Ke3 {[%emt 0:00:06]} Rg7 {[%emt 0:00:42]} 127. Rf5 {[%emt 0:00:35]} Kg3 {[%emt 0:00:12]} 128. Rf4 {[%emt 0:01:25]} Re7+ {[%emt 0:01:02]} 129. Be4 {[%emt 0:00:09]} Rg7 {[%emt 0:00:07]} 130. Rf1 {[%emt 0:00:41]} Rg5 {[%emt 0:00:18]} 131. Bf5 {[%emt 0:00:20]} Kg2 {[%emt 0:01:00]} 132. Rf2+ {[%emt 0:00:07]} Kg3 {[%emt 0:00:05]} 133. Rf3+ {[%emt 0:00:11]} Kg2 {[%emt 0:00:07]} 134. Ke2 {[%emt 0:01:16]} Kh2 {[%emt 0:00:17]} 135. Rf4 {[%emt 0:01:08]} Rg2+ {[%emt 0:00:33]} 136. Ke3 {[%emt 0:00:13]} Rg3+ {[%emt 0:00:02]} 137. Ke4 {[%emt 0:00:05]} Rg7 {[%emt 0:00:38]} 138. Be6 {[%emt 0:01:05]} Kg3 {[%emt 0:01:02]} 139. Rf1 {[%emt 0:00:30]} Rg5 {[%emt 0:00:26]} 140. Rf3+ {[%emt 0:00:10]} Kg2 {[%emt 0:01:35]} 141. Kf4 {[%emt 0:00:06]} Rg7 {[%emt 0:01:00]} 142. Bd5 {[%emt 0:01:13]} Kg1 {[%emt 0:01:40]} 143. Ra3 {[%emt 0:00:55]} Kf2 {[%emt 0:01:04]} 144. Ra2+ {[%emt 0:01:02]} Ke1 {[%emt 0:00:01]} 145. Bf3 {[%emt 0:01:00]} Rc7 {[%emt 0:00:56]} 146. Re2+ {[%emt 0:00:57]} 1/2-1/2

[Event "CZE-tht Extraliga 2018-19"]
[Site "Czech Republic"]
[Date "2019.02.10"]
[Round "8.1"]
[White "Konopka, Michal"]
[Black "Shengelia, David"]
[Result "0-1"]
[ECO "A06"]
[WhiteElo "2364"]
[BlackElo "2528"]
[Annotator "ChessBase"]
[PlyCount "62"]
[EventDate "2018.11.03"]
[EventType "team-tourn"]
[EventCountry "CZE"]
[SourceTitle "playchess.com"]
[Source "ChessBase"]
[SourceQuality "1"]
[WhiteTeam "Siesta B"]
[BlackTeam "Duras"]
[TimeControl "40/5400+30:1800+30"]

1. Nf3 {[%emt 0:00:00]} d5 {[%emt 0:00:00]} 2. d4 {[%emt 0:00:13]} e6 {[%emt 0:00:00]} 3. g3 {[%emt 0:01:26]} b5 {[%emt 0:04:26]} 4. Qd3 {[%emt 0:10:22]} Ba6 {[%emt 0:12:40]} 5. Bg2 {[%emt 0:14:53]} Nf6 {[%emt 0:01:32]} 6. O-O {[%emt 0:00:27]} c5 {[%emt 0:15:19]} 7. c3 {[%emt 0:00:41]} b4 {[%emt 0:03:58]} 8. Qc2 {[%emt 0:01:56]} Nbd7 {[%emt 0:01:18]} 9. Bg5 {[%emt 0:08:39]} Rc8 {[%emt 0:01:53]} 10. Re1 {[%emt 0:12:26]} Qb6 {[%emt 0:04:28]} 11. Bxf6 {[%emt 0:16:11]} Nxf6 {[%emt 0:01:23]} 12. e3 {[%emt 0:00:52]} Be7 {[%emt 0:00:58]} 13. Qb3 {[%emt 0:06:24]} O-O {[%emt 0:13:46]} 14. Nbd2 {[%emt 0:09:26]} Rc7 {[%emt 0:02:27]} 15. Rec1 {[%emt 0:08:52]} Rfc8 {[%emt 0:00:50]} 16. cxb4 {[%emt 0:01:26]} c4 {[%emt 0:08:30]} 17. Qc2 {[%emt 0:00:50]} Qxb4 {[%emt 0:00:09]} 18. Bf1 {[%emt 0:02:19]} Bd6 {[%emt 0:06:44]} 19. Qc3 {[%emt 0:00:41]} Qb6 {[%emt 0:01:21]} 20. Rab1 {[%emt 0:01:04]} Bb4 {[%emt 0:07:05]} 21. Qc2 {[%emt 0:00:33]} g6 {[%emt 0:04:24]} 22. Qd1 {[%emt 0:00:32]} Kg7 {[%emt 0:02:08]} 23. Ra1 {[%emt 0:00:28]} Bd6 {[%emt 0:03:22]} 24. Rab1 {[%emt 0:00:15]} Qa5 {[%emt 0:01:30]} 25. Qc2 {[%emt 0:00:41]} Bb5 {[%emt 0:00:46]} 26. a3 {[%emt 0:00:47]} Ba4 {[%emt 0:00:51]} 27. Qc3 {[%emt 0:00:02]} Qb6 {[%emt 0:00:17]} 28. Ne5 {[%emt 0:00:26]} a5 {[%emt 0:00:20]} 29. Ndf3 {[%emt 0:01:05]} Ne4 {[%emt 0:00:30]} 30. Qe1 {[%emt 0:00:05]} f6 {[%emt 0:00:30]} 31. b3 {[%emt 0:00:11]} Bxb3 {[%emt 0:00:25]} 0-1

[Event "CZE-tht Extraliga 2018-19"]
[Site "Czech Republic"]
[Date "2019.02.10"]
[Round "8.2"]
[White "Hracek, Zbynek"]
[Black "Markowski, Tomasz"]
[Result "1-0"]
[ECO "B41"]
[WhiteElo "2568"]
[BlackElo "2550"]
[Annotator "ChessBase"]
[PlyCount "47"]
[EventDate "2018.11.03"]
[EventType "team-tourn"]
[EventCountry "CZE"]
[SourceTitle "playchess.com"]
[Source "ChessBase"]
[SourceQuality "1"]
[WhiteTeam "Pardubice"]
[BlackTeam "Poruba"]
[TimeControl "40/5400+30:1800+30"]

1. e4 {[%emt 0:00:00]} c5 {[%emt 0:00:00]} 2. Nf3 {[%emt 0:00:00]} e6 {[%emt 0:00:00]} 3. d4 {[%emt 0:00:00]} cxd4 {[%emt 0:00:00]} 4. Nxd4 {[%emt 0:00:00]} a6 {[%emt 0:00:00]} 5. c4 {[%emt 0:00:06]} Nf6 {[%emt 0:00:00]} 6. Nc3 {[%emt 0:00:06]} Qc7 {[%emt 0:00:00]} 7. Be2 {[%emt 0:00:41]} Bb4 {[%emt 0:00:26]} 8. Nc2 {[%emt 0:01:07]} Be7 {[%emt 0:00:02]} 9. Be3 {[%emt 0:00:08]} O-O {[%emt 0:00:36]} 10. Qd2 {[%emt 0:03:33]} b6 {[%emt 0:01:19]} 11. f3 {[%emt 0:00:40]} d6 {[%emt 0:00:45]} 12. g4 {[%emt 0:02:05]} Bb7 {[%emt 0:01:21]} 13. O-O-O {[%emt 0:04:51]} Nc6 {[%emt 0:00:09]} 14. g5 {[%emt 0:08:01]} Nd7 {[%emt 0:00:14]} 15. b3 {[%emt 0:02:16]} Rfc8 {[%emt 0:04:02]} 16. Kb2 {[%emt 0:00:16]} Nce5 {[%emt 0:06:47]} 17. f4 {[%emt 0:04:10]} Ng6 {[%emt 0:00:23]} 18. h4 {[%emt 0:30:10]} Nc5 {[%emt 0:08:39]} 19. h5 {[%emt 0:00:14]} Nf8 {[%emt 0:00:20]} 20. h6 {[%emt 0:00:43]} g6 {[%emt 0:02:26]} 21. Rhf1 {[%emt 0:02:36]} f6 {[%emt 0:05:12]} 22. f5 {[%emt 0:04:06]} Qd8 {[%emt 0:12:52]} 23. fxe6 {[%emt 0:03:52]} fxg5 {[%emt 0:08:44]} 24. Bg4 {[%emt 0:00:46]} 1-0

[Event "CZE-tht Extraliga 2018-19"]
[Site "Czech Republic"]
[Date "2019.02.10"]
[Round "8.2"]
[White "Ponizil, Cyril"]
[Black "Vavra, Pavel"]
[Result "1/2-1/2"]
[ECO "C05"]
[WhiteElo "2503"]
[BlackElo "2348"]
[Annotator "ChessBase"]
[PlyCount "130"]
[EventDate "2018.11.03"]
[EventType "team-tourn"]
[EventCountry "CZE"]
[SourceTitle "playchess.com"]
[Source "ChessBase"]
[SourceQuality "1"]
[WhiteTeam "Duras"]
[BlackTeam "Siesta B"]
[TimeControl "40/5400+30:1800+30"]

1. e4 {[%emt 0:00:00]} e6 {[%emt 0:00:00]} 2. d4 {[%emt 0:00:00]} d5 {[%emt 0:00:00]} 3. Nd2 {[%emt 0:00:00]} Nf6 {[%emt 0:00:00]} 4. e5 {[%emt 0:00:00]} Nfd7 {[%emt 0:00:03]} 5. Ngf3 {[%emt 0:00:02]} c5 {[%emt 0:00:22]} 6. c3 {[%emt 0:00:04]} Nc6 {[%emt 0:00:09]} 7. Bd3 {[%emt 0:00:05]} g6 {[%emt 0:00:17]} 8. h4 {[%emt 0:04:44]} h6 {[%emt 0:06:48]} 9. Nf1 {[%emt 0:01:32]} Qa5 {[%emt 0:04:34]} 10. dxc5 {[%emt 0:04:50]} Ndxe5 {[%emt 0:06:05]} 11. Nxe5 {[%emt 0:00:26]} Nxe5 {[%emt 0:00:06]} 12. b4 {[%emt 0:00:04]} Qc7 {[%emt 0:10:57]} 13. f4 {[%emt 0:04:11]} Nxd3+ {[%emt 0:08:16]} 14. Qxd3 {[%emt 0:00:03]} Bg7 {[%emt 0:02:18]} 15. Be3 {[%emt 0:09:15]} e5 {[%emt 0:01:58]} 16. Qxd5 {[%emt 0:06:03]} Be6 {[%emt 0:04:19]} 17. Qe4 {[%emt 0:01:33]} O-O-O {[%emt 0:02:52]} 18. fxe5 {[%emt 0:14:16]} Bxe5 {[%emt 0:03:56]} 19. Rc1 {[%emt 0:04:35]} Rhe8 {[%emt 0:05:29]} 20. Kf2 {[%emt 0:01:37]} f5 {[%emt 0:10:30]} 21. Qf3 {[%emt 0:04:11]} f4 {[%emt 0:04:20]} 22. Bd2 {[%emt 0:00:04]} h5 {[%emt 0:10:31]} 23. Kg1 {[%emt 0:04:03]} Bc4 {[%emt 0:04:57]} 24. Qf2 {[%emt 0:04:24]} Qd7 {[%emt 0:00:25]} 25. Bxf4 {[%emt 0:13:32]} Rf8 {[%emt 0:00:18]} 26. g3 {[%emt 0:00:04]} Bxf4 {[%emt 0:01:36]} 27. gxf4 {[%emt 0:00:09]} Qg4+ {[%emt 0:00:23]} 28. Qg3 {[%emt 0:04:47]} Rxf4 {[%emt 0:00:11]} 29. Qxg4+ {[%emt 0:03:39]} Rxg4+ {[%emt 0:00:04]} 30. Kf2 {[%emt 0:00:03]} Rf8+ {[%emt 0:00:14]} 31. Ke3 {[%emt 0:00:05]} Rg2 {[%emt 0:00:35]} 32. Kd4 {[%emt 0:10:42]} Rf4+ {[%emt 0:05:51]} 33. Ke3 {[%emt 0:00:01]} Rf7 {[%emt 0:02:02]} 34. Kd4 {[%emt 0:01:08]} Rf4+ {[%emt 0:00:49]} 35. Ke3 {[%emt 0:00:01]} Rf7 {[%emt 0:00:11]} 36. Kd4 {[%emt 0:00:02]} Rg4+ {[%emt 0:00:04]} 37. Ke3 {[%emt 0:00:37]} Re7+ {[%emt 0:01:07]} 38. Kf2 {[%emt 0:00:31]} Rf7+ {[%emt 0:01:47]} 39. Ke3 {[%emt 0:00:07]} Re7+ {[%emt 0:00:00]} 40. Kf2 {[%emt 0:02:05]} Re2+ {[%emt 0:00:00]} 41. Kf3 {[%emt 0:30:15]} Rxa2 {[%emt 0:05:15]} 42. Ke3 {[%emt 0:00:00]} Re2+ {[%emt 0:16:05]} 43. Kf3 {[%emt 0:00:00]} Reg2 {[%emt 0:04:55]} 44. Ke3 {[%emt 0:00:00]} Rg1 {[%emt 0:05:16]} 45. Nd2 {[%emt 0:00:00]} R1g3+ {[%emt 0:01:26]} 46. Nf3 {[%emt 0:00:00]} Bd5 {[%emt 0:00:12]} 47. Rcf1 {[%emt 0:00:00]} Re4+ {[%emt 0:00:30]} 48. Kd2 {[%emt 0:00:00]} Re8 {[%emt 0:00:13]} 49. Nd4 {[%emt 0:00:00]} Bxh1 {[%emt 0:00:09]} 50. Rxh1 {[%emt 0:00:00]} Rf8 {[%emt 0:01:22]} 51. Kc2 {[%emt 0:00:00]} Rf4 {[%emt 0:00:30]} 52. b5 {[%emt 0:00:00]} g5 {[%emt 0:01:07]} 53. hxg5 {[%emt 0:00:00]} Rxg5 {[%emt 0:00:14]} 54. c6 {[%emt 0:00:00]} bxc6 {[%emt 0:01:22]} 55. bxc6 {[%emt 0:00:00]} h4 {[%emt 0:00:28]} 56. Re1 {[%emt 0:00:00]} Rxd4 {[%emt 0:02:22]} 57. cxd4 {[%emt 0:00:00]} Rh5 {[%emt 0:00:21]} 58. d5 {[%emt 0:00:00]} Rxd5 {[%emt 0:00:39]} 59. Re8+ {[%emt 0:00:00]} Kc7 {[%emt 0:00:06]} 60. Rh8 {[%emt 0:00:00]} Rd4 {[%emt 0:00:56]} 61. Rh6 {[%emt 0:00:00]} a5 {[%emt 0:00:30]} 62. Kb2 {[%emt 0:00:00]} a4 {[%emt 0:00:23]} 63. Ka2 {[%emt 0:00:00]} Kb6 {[%emt 0:01:00]} 64. Ka3 {[%emt 0:00:00]} Rc4 {[%emt 0:00:08]} 65. Ka2 {[%emt 0:00:00]} Rxc6 1/2-1/2

[Event "CZE-tht Extraliga 2018-19"]
[Site "Czech Republic"]
[Date "2019.02.10"]
[Round "8.2"]
[White "Straka, Vojtech"]
[Black "Michalik, Peter"]
[Result "1/2-1/2"]
[ECO "A29"]
[WhiteElo "2362"]
[BlackElo "2567"]
[Annotator "ChessBase"]
[PlyCount "57"]
[EventDate "2018.11.03"]
[EventType "team-tourn"]
[EventCountry "CZE"]
[SourceTitle "playchess.com"]
[Source "ChessBase"]
[SourceQuality "1"]
[WhiteTeam "Cesky Tesin"]
[BlackTeam "Siesta"]
[TimeControl "40/5400+30:1800+30"]

1. c4 {[%emt 0:00:00]} e5 {[%emt 0:00:17]} 2. g3 {[%emt 0:01:33]} Nf6 {[%emt 0:00:30]} 3. Bg2 {[%emt 0:00:09]} d5 {[%emt 0:00:35]} 4. cxd5 {[%emt 0:00:10]} Nxd5 {[%emt 0:00:06]} 5. Nc3 {[%emt 0:00:33]} Nb6 {[%emt 0:00:27]} 6. Nf3 {[%emt 0:00:31]} Nc6 {[%emt 0:00:10]} 7. O-O {[%emt 0:00:19]} Be7 {[%emt 0:00:19]} 8. d3 {[%emt 0:02:38]} O-O {[%emt 0:01:16]} 9. Be3 {[%emt 0:00:23]} Re8 {[%emt 0:02:55]} 10. Rc1 {[%emt 0:02:42]} Bf8 {[%emt 0:00:48]} 11. a3 {[%emt 0:13:37]} Nd4 {[%emt 0:09:07]} 12. Ne4 {[%emt 0:06:29]} a5 {[%emt 0:05:58]} 13. Nxd4 {[%emt 0:24:26]} exd4 {[%emt 0:00:07]} 14. Bg5 {[%emt 0:00:11]} f6 {[%emt 0:15:47]} 15. Bd2 {[%emt 0:00:14]} a4 {[%emt 0:06:38]} 16. Bb4 {[%emt 0:03:12]} Bxb4 {[%emt 0:04:09]} 17. axb4 {[%emt 0:01:20]} Qe7 {[%emt 0:00:12]} 18. Qd2 {[%emt 0:07:42]} c6 {[%emt 0:04:13]} 19. Rfe1 {[%emt 0:12:20]} Be6 {[%emt 0:02:23]} 20. Nc5 {[%emt 0:02:05]} Bd5 {[%emt 0:06:12]} 21. Qf4 {[%emt 0:03:32]} Bxg2 {[%emt 0:18:21]} 22. Kxg2 {[%emt 0:00:06]} Nd5 {[%emt 0:00:10]} 23. Qxd4 {[%emt 0:02:30]} b6 {[%emt 0:00:04]} 24. Ne4 {[%emt 0:01:45]} Qxb4 {[%emt 0:00:05]} 25. Qxb4 {[%emt 0:02:53]} Nxb4 {[%emt 0:00:05]} 26. Rc4 {[%emt 0:00:08]} c5 {[%emt 0:00:53]} 27. Ra1 {[%emt 0:00:13]} Ra5 {[%emt 0:04:25]} 28. Nc3 {[%emt 0:01:53]} Rea8 {[%emt 0:00:07]} 29. Ra3 {[%emt 0:00:55]} 1/2-1/2

[Event "CZE-tht Extraliga 2018-19"]
[Site "Czech Republic"]
[Date "2019.02.10"]
[Round "8.3"]
[White "Bobras, Piotr"]
[Black "Stocek, Jiri"]
[Result "1/2-1/2"]
[ECO "C70"]
[WhiteElo "2488"]
[BlackElo "2588"]
[Annotator "ChessBase"]
[PlyCount "66"]
[EventDate "2018.11.03"]
[EventType "team-tourn"]
[EventCountry "CZE"]
[SourceTitle "playchess.com"]
[Source "ChessBase"]
[SourceQuality "1"]
[WhiteTeam "Poruba"]
[BlackTeam "Pardubice"]
[TimeControl "40/5400+30:1800+30"]

1. e4 {[%emt 0:00:00]} e5 {[%emt 0:00:58]} 2. Nf3 {[%emt 0:00:00]} Nc6 {[%emt 0:00:06]} 3. Bb5 {[%emt 0:00:00]} a6 {[%emt 0:00:26]} 4. Ba4 {[%emt 0:00:04]} g6 {[%emt 0:00:31]} 5. c3 {[%emt 0:07:18]} Bg7 {[%emt 0:00:37]} 6. d4 {[%emt 0:00:18]} b5 {[%emt 0:00:57]} 7. Bb3 {[%emt 0:00:23]} exd4 {[%emt 0:00:38]} 8. Bg5 {[%emt 0:11:26]} Nge7 {[%emt 0:05:37]} 9. Nxd4 {[%emt 0:00:24]} Na5 {[%emt 0:15:13]} 10. Qf3 {[%emt 0:08:21]} Nxb3 {[%emt 0:03:34]} 11. axb3 {[%emt 0:00:04]} Bb7 {[%emt 0:02:00]} 12. Nd2 {[%emt 0:01:05]} O-O {[%emt 0:09:23]} 13. Bf6 {[%emt 0:02:43]} c5 {[%emt 0:05:13]} 14. Ne2 {[%emt 0:08:38]} Bxf6 {[%emt 0:08:56]} 15. Qxf6 {[%emt 0:00:07]} Nc6 {[%emt 0:01:55]} 16. Qd6 {[%emt 0:09:05]} Qe7 {[%emt 0:02:40]} 17. Qxe7 {[%emt 0:05:59]} Nxe7 {[%emt 0:00:12]} 18. f3 {[%emt 0:00:02]} d5 {[%emt 0:04:59]} 19. exd5 {[%emt 0:01:07]} Nxd5 {[%emt 0:01:55]} 20. Ne4 {[%emt 0:02:19]} Ne3 {[%emt 0:01:17]} 21. Kf2 {[%emt 0:04:24]} Ng4+ {[%emt 0:03:45]} 22. fxg4 {[%emt 0:11:29]} Bxe4 {[%emt 0:00:11]} 23. b4 {[%emt 0:00:06]} Rfc8 24. bxc5 {[%emt 0:00:12]} Rxc5 {[%emt 0:04:28]} 25. Rhd1 {[%emt 0:02:18]} Rcc8 {[%emt 0:05:43]} 26. Rd4 {[%emt 0:03:06]} Bb7 {[%emt 0:02:18]} 27. Nf4 {[%emt 0:00:26]} a5 {[%emt 0:02:26]} 28. Re1 {[%emt 0:13:45]} a4 {[%emt 0:03:16]} 29. Re5 {[%emt 0:05:33]} a3 {[%emt 0:04:06]} 30. bxa3 {[%emt 0:00:05]} Rxc3 {[%emt 0:04:22]} 31. Rxb5 {[%emt 0:02:54]} Bc6 {[%emt 0:03:52]} 32. Rb2 {[%emt 0:00:48]} Rcxa3 {[%emt 0:00:36]} 33. h3 {[%emt 0:01:07]} R3a4 {[%emt 0:01:16]} 1/2-1/2